[Event "Early-Titled-Tuesday-Blitz-September-05-2023"]
[Site "Chess.com"]
[Date "2023.09.05"]
[Round "7"]
[White "vugarrasulov"]
[Black "nihalsarin"]
[Result "1/2-1/2"]
[WhiteElo "2931"]
[BlackElo "3125"]
[TimeControl "180+1"]
[EndTime "9:16:58 PDT"]
[Termination "Game drawn by repetition"]

1. e4 {[%clk 0:03:00.9]} 1... c6 {[%clk 0:02:59.5]} 2. Nc3 {[%clk 0:02:59.2]}
2... d5 {[%clk 0:03:00.4]} 3. Nf3 {[%clk 0:02:59.6]} 3... Bg4 {[%clk 0:02:59.4]}
4. h3 {[%clk 0:02:57.7]} 4... Bxf3 {[%clk 0:02:59.7]} 5. Qxf3 {[%clk 0:02:58.6]}
5... e6 {[%clk 0:03:00.6]} 6. d4 {[%clk 0:02:55.6]} 6... dxe4 {[%clk 0:03:01]}
7. Nxe4 {[%clk 0:02:53.3]} 7... Qxd4 {[%clk 0:03:01.1]} 8. Bd3 {[%clk
0:02:53.4]} 8... Nd7 {[%clk 0:03:00.2]} 9. O-O {[%clk 0:02:49.9]} 9... Ngf6
{[%clk 0:02:59.6]} 10. Be3 {[%clk 0:02:45]} 10... Qe5 {[%clk 0:02:59.7]} 11.
Rad1 {[%clk 0:02:39.6]} 11... Nd5 {[%clk 0:02:50.6]} 12. Bc1 {[%clk 0:02:32.2]}
12... Be7 {[%clk 0:02:51]} 13. c4 {[%clk 0:02:30.9]} 13... N5f6 {[%clk 0:02:51]}
14. Rfe1 {[%clk 0:02:21.9]} 14... O-O {[%clk 0:02:48.2]} 15. Ng5 {[%clk
0:02:18.2]} 15... Qa5 {[%clk 0:02:45.9]} 16. Nxh7 {[%clk 0:02:12.1]} 16... Nxh7
{[%clk 0:02:45.4]} 17. Bxh7+ {[%clk 0:02:12.7]} 17... Kxh7 {[%clk 0:02:46.3]}
18. Qd3+ {[%clk 0:02:11.8]} 18... Kg8 {[%clk 0:02:45.4]} 19. Qxd7 {[%clk
0:02:12.2]} 19... Bb4 {[%clk 0:02:35.2]} 20. Rf1 {[%clk 0:02:02.8]} 20... Qxa2
{[%clk 0:02:35.1]} 21. Qxb7 {[%clk 0:01:47.8]} 21... Qxc4 {[%clk 0:02:34.6]} 22.
Be3 {[%clk 0:01:48.3]} 22... c5 {[%clk 0:02:34.4]} 23. Rc1 {[%clk 0:01:44.9]}
23... Rab8 {[%clk 0:02:18.3]} 24. Qxf7+ {[%clk 0:01:38.9]} 24... Rxf7 {[%clk
0:02:19.2]} 25. Rxc4 {[%clk 0:01:39.3]} 25... Rb5 {[%clk 0:02:19.9]} 26. Rfc1
{[%clk 0:01:38.5]} 26... Rf5 {[%clk 0:02:19.9]} 27. g4 {[%clk 0:01:37.8]} 27...
Rd5 {[%clk 0:02:20.1]} 28. Kg2 {[%clk 0:01:38.3]} 28... a5 {[%clk 0:02:20.5]}
29. h4 {[%clk 0:01:33.2]} 29... Kf7 {[%clk 0:02:21.2]} 30. h5 {[%clk 0:01:33.3]}
30... Bd2 {[%clk 0:02:16.8]} 31. Bxd2 {[%clk 0:01:26.1]} 31... Rxd2 {[%clk
0:02:17.7]} 32. Rxc5 {[%clk 0:01:25.7]} 32... Rdxb2 {[%clk 0:02:18.5]} 33. Rc7+
{[%clk 0:01:23.2]} 33... Kf6 {[%clk 0:02:18.6]} 34. R1c3 {[%clk 0:01:19]} 34...
Rb7 {[%clk 0:02:15.1]} 35. Rf3+ {[%clk 0:01:17.6]} 35... Kg5 {[%clk 0:02:15.3]}
36. Rxb7 {[%clk 0:00:49.7]} 36... Rxb7 {[%clk 0:02:16.2]} 37. Ra3 {[%clk
0:00:39.6]} 37... Ra7 {[%clk 0:02:06.5]} 38. Ra4 {[%clk 0:00:35.3]} 38... e5
{[%clk 0:02:05.9]} 39. Kg3 {[%clk 0:00:34.5]} 39... Ra8 {[%clk 0:02:06.1]} 40.
f3 {[%clk 0:00:29.7]} 40... Ra7 {[%clk 0:02:05.5]} 41. Kf2 {[%clk 0:00:30.2]}
41... Kf6 {[%clk 0:02:05.8]} 42. Ke3 {[%clk 0:00:29.3]} 42... Ke6 {[%clk
0:02:06.1]} 43. Ke4 {[%clk 0:00:29.7]} 43... Kd6 {[%clk 0:02:05.9]} 44. Kf5
{[%clk 0:00:26.4]} 44... Ke7 {[%clk 0:01:26.2]} 45. Kg6 {[%clk 0:00:22.3]} 45...
Kf8 {[%clk 0:01:24.7]} 46. g5 {[%clk 0:00:22.7]} 46... Kg8 {[%clk 0:01:20.9]}
47. Kf5 {[%clk 0:00:22.1]} 47... Rf7+ {[%clk 0:01:20.6]} 48. Kxe5 {[%clk
0:00:20.9]} 48... Rxf3 {[%clk 0:01:21.3]} 49. Rxa5 {[%clk 0:00:21.3]} 49... Kh7
{[%clk 0:01:19.4]} 50. Ra8 {[%clk 0:00:19.7]} 50... Rf1 {[%clk 0:01:11.1]} 51.
Ke6 {[%clk 0:00:15]} 51... Re1+ {[%clk 0:01:09.5]} 52. Kf5 {[%clk 0:00:15.6]}
52... Rf1+ {[%clk 0:01:09.8]} 53. Ke4 {[%clk 0:00:16.1]} 53... Re1+ {[%clk
0:01:09.7]} 54. Kf4 {[%clk 0:00:16.4]} 54... Rf1+ {[%clk 0:01:10.2]} 55. Ke3
{[%clk 0:00:17.1]} 55... Rg1 {[%clk 0:01:07.5]} 56. g6+ {[%clk 0:00:13.3]} 56...
Kh6 {[%clk 0:01:08.4]} 57. Rh8+ {[%clk 0:00:13.4]} 57... Kg5 {[%clk 0:01:09.1]}
58. Rh7 {[%clk 0:00:14]} 58... Kf6 {[%clk 0:01:09]} 59. Kf4 {[%clk 0:00:13.1]}
59... Rf1+ {[%clk 0:01:08.8]} 60. Kg4 {[%clk 0:00:13.7]} 60... Rg1+ {[%clk
0:01:09]} 61. Kf4 {[%clk 0:00:14]} 61... Rf1+ {[%clk 0:01:09.7]} 62. Kg4 {[%clk
0:00:14.6]} 62... Rg1+ {[%clk 0:01:10.4]} 63. Kh4 {[%clk 0:00:15]} 63... Ra1
{[%clk 0:01:06.7]} 64. Kg4 {[%clk 0:00:13.7]} 64... Rh1 {[%clk 0:01:03.9]} 65.
Rh8 {[%clk 0:00:12.9]} 65... Rg1+ {[%clk 0:01:04.4]} 66. Kf4 {[%clk 0:00:13.6]}
66... Rf1+ {[%clk 0:01:04.8]} 67. Kg4 {[%clk 0:00:14.3]} 67... Rg1+ {[%clk
0:01:05.6]} 68. Kf4 {[%clk 0:00:14.9]} 68... Rf1+ {[%clk 0:01:06.2]} 69. Kg4
{[%clk 0:00:14.5]} 69... Rg1+ {[%clk 0:01:06.8]} 1/2-1/2

[Event "Early-Titled-Tuesday-Blitz-September-05-2023"]
[Site "Chess.com"]
[Date "2023.09.05"]
[Round "7"]
[White "kikoveiga"]
[Black "Vsevolod_Ovchinnikov"]
[Result "1-0"]
[WhiteElo "2609"]
[BlackElo "2604"]
[TimeControl "180+1"]
[EndTime "9:16:58 PDT"]
[Termination "kikoveiga won by resignation"]

1. c4 {[%clk 0:02:51]} 1... Nf6 {[%clk 0:03:00]} 2. Nc3 {[%clk 0:02:50.5]} 2...
d5 {[%clk 0:02:59.6]} 3. cxd5 {[%clk 0:02:45]} 3... Nxd5 {[%clk 0:02:59.6]} 4.
Nf3 {[%clk 0:02:45.9]} 4... g6 {[%clk 0:02:59.3]} 5. h4 {[%clk 0:02:45]} 5...
Bg7 {[%clk 0:02:52.3]} 6. h5 {[%clk 0:02:44.9]} 6... Nc6 {[%clk 0:02:45.8]} 7.
d4 {[%clk 0:02:38.4]} 7... Nb6 {[%clk 0:02:44.7]} 8. Bf4 {[%clk 0:02:33.3]} 8...
Bg4 {[%clk 0:02:39.1]} 9. e3 {[%clk 0:02:18.1]} 9... Bxh5 {[%clk 0:02:30.3]} 10.
Rc1 {[%clk 0:02:07.3]} 10... a6 {[%clk 0:01:33.4]} 11. Be2 {[%clk 0:01:49.7]}
11... Bg4 {[%clk 0:01:29.2]} 12. Ne4 {[%clk 0:01:42.1]} 12... Nd5 {[%clk
0:01:23.4]} 13. Bh2 {[%clk 0:01:39.8]} 13... Bc8 {[%clk 0:00:46.3]} 14. Qb3
{[%clk 0:01:35.1]} 14... e6 {[%clk 0:00:41.5]} 15. O-O {[%clk 0:01:33.2]} 15...
O-O {[%clk 0:00:40.6]} 16. Nc5 {[%clk 0:01:29.6]} 16... Na5 {[%clk 0:00:36.8]}
17. Qa4 {[%clk 0:01:29.5]} 17... b6 {[%clk 0:00:37.1]} 18. Nxa6 {[%clk
0:01:20.9]} 18... Bxa6 {[%clk 0:00:16]} 19. Bxa6 {[%clk 0:01:19.6]} 19... Rxa6
{[%clk 0:00:16.9]} 20. b4 {[%clk 0:01:19.7]} 20... Qe7 {[%clk 0:00:17.2]} 21.
bxa5 {[%clk 0:01:08.3]} 21... Rxa5 {[%clk 0:00:18.1]} 22. Qc4 {[%clk 0:01:05.8]}
22... Rc8 {[%clk 0:00:12.2]} 23. e4 {[%clk 0:00:58.3]} 23... Nf6 {[%clk
0:00:11.7]} 24. Rfe1 {[%clk 0:00:55.7]} 24... c5 {[%clk 0:00:09.6]} 25. d5
{[%clk 0:00:55.1]} 25... b5 {[%clk 0:00:06.7]} 26. Qc2 {[%clk 0:00:50.1]} 26...
exd5 {[%clk 0:00:03.2]} 27. exd5 {[%clk 0:00:50]} 27... Qb7 {[%clk 0:00:03.8]}
28. d6 {[%clk 0:00:46.3]} 28... Ra6 {[%clk 0:00:02.6]} 29. Re7 {[%clk
0:00:45.5]} 29... Qd5 {[%clk 0:00:02.5]} 30. d7 {[%clk 0:00:34.2]} 30... Nxd7
{[%clk 0:00:02.1]} 31. Rd1 {[%clk 0:00:33.7]} 31... Qxa2 {[%clk 0:00:02.8]} 32.
Qxa2 {[%clk 0:00:33.7]} 32... Rxa2 {[%clk 0:00:03.7]} 33. Rexd7 {[%clk
0:00:34.1]} 33... c4 {[%clk 0:00:03.4]} 34. Rd8+ {[%clk 0:00:33.6]} 34... Rxd8
{[%clk 0:00:03]} 35. Rxd8+ {[%clk 0:00:34.5]} 35... Bf8 {[%clk 0:00:03.6]} 36.
Bd6 {[%clk 0:00:35.2]} 36... Kg7 {[%clk 0:00:04.3]} 37. Bxf8+ {[%clk 0:00:35.1]}
37... Kf6 {[%clk 0:00:05]} 38. Bb4 {[%clk 0:00:34]} 38... Ke6 {[%clk 0:00:04]}
39. Nd4+ {[%clk 0:00:33.4]} 39... Ke5 {[%clk 0:00:04.6]} 40. Nxb5 {[%clk
0:00:32.6]} 40... Ra1+ {[%clk 0:00:05.1]} 41. Kh2 {[%clk 0:00:32.6]} 41... Rb1
{[%clk 0:00:06]} 42. Bc3+ {[%clk 0:00:32.6]} 42... Ke6 {[%clk 0:00:05.3]} 43.
Nd4+ {[%clk 0:00:31.6]} 43... Ke7 {[%clk 0:00:05.4]} 44. Rc8 {[%clk 0:00:29]}
44... Kd6 {[%clk 0:00:03.6]} 45. Rxc4 {[%clk 0:00:27.8]} 45... Kd5 {[%clk
0:00:04.5]} 46. Rc8 {[%clk 0:00:28]} 46... Ke4 {[%clk 0:00:05.1]} 47. Nf3 {[%clk
0:00:25.3]} 47... h6 {[%clk 0:00:04.8]} 48. Nd2+ {[%clk 0:00:25.6]} 48... Kd3
{[%clk 0:00:05.2]} 49. Nxb1 {[%clk 0:00:26.5]} 1-0

[Event "Early-Titled-Tuesday-Blitz-September-05-2023"]
[Site "Chess.com"]
[Date "2023.09.05"]
[Round "7"]
[White "ContrVersia"]
[Black "MKlose11"]
[Result "1-0"]
[WhiteElo "2916"]
[BlackElo "2656"]
[TimeControl "180+1"]
[EndTime "9:17:04 PDT"]
[Termination "ContrVersia won on time"]

1. Nf3 {[%clk 0:03:00.4]} 1... Nf6 {[%clk 0:02:59.8]} 2. c4 {[%clk 0:03:00.8]}
2... c5 {[%clk 0:02:58.8]} 3. b3 {[%clk 0:03:00.1]} 3... g6 {[%clk 0:02:55.6]}
4. Bb2 {[%clk 0:02:59.9]} 4... Bg7 {[%clk 0:02:56.2]} 5. g3 {[%clk 0:03:00.1]}
5... d6 {[%clk 0:02:56.6]} 6. Bg2 {[%clk 0:02:59.5]} 6... Nc6 {[%clk 0:02:56.8]}
7. O-O {[%clk 0:02:58.6]} 7... Bd7 {[%clk 0:02:57]} 8. d4 {[%clk 0:02:58.1]}
8... cxd4 {[%clk 0:02:57.9]} 9. Nxd4 {[%clk 0:02:58.5]} 9... O-O {[%clk
0:02:58.4]} 10. Qd2 {[%clk 0:02:57.8]} 10... Re8 {[%clk 0:02:54.3]} 11. Na3
{[%clk 0:02:56.1]} 11... Qa5 {[%clk 0:02:45.2]} 12. Qxa5 {[%clk 0:02:47.7]}
12... Nxa5 {[%clk 0:02:44.1]} 13. Rad1 {[%clk 0:02:38]} 13... Nc6 {[%clk
0:02:41.3]} 14. Nac2 {[%clk 0:02:19.7]} 14... Ng4 {[%clk 0:02:35]} 15. e3 {[%clk
0:02:16.1]} 15... Nge5 {[%clk 0:02:32.1]} 16. h3 {[%clk 0:01:45.9]} 16... Nxd4
{[%clk 0:02:09.4]} 17. exd4 {[%clk 0:01:42]} 17... Nc6 {[%clk 0:02:09.2]} 18.
Rfe1 {[%clk 0:01:38.9]} 18... a5 {[%clk 0:02:07.8]} 19. Bc3 {[%clk 0:01:35.4]}
19... Kf8 {[%clk 0:01:46.1]} 20. Re3 {[%clk 0:01:34.2]} 20... Bf5 {[%clk
0:01:43.6]} 21. Na3 {[%clk 0:01:26.1]} 21... Nb4 {[%clk 0:01:36.5]} 22. Bxb7
{[%clk 0:00:54.5]} 22... Rab8 {[%clk 0:01:35.3]} 23. Bg2 {[%clk 0:00:53]} 23...
Nxa2 {[%clk 0:01:33.5]} 24. Bxa5 {[%clk 0:00:49.3]} 24... Nb4 {[%clk 0:01:04.2]}
25. g4 {[%clk 0:00:21.9]} 25... Bd7 {[%clk 0:00:51.3]} 26. Bxb4 {[%clk
0:00:07.4]} 26... Rxb4 {[%clk 0:00:49.9]} 27. Nc2 {[%clk 0:00:08.3]} 27... Rb6
{[%clk 0:00:47.4]} 28. Ra1 {[%clk 0:00:08.4]} 28... Reb8 {[%clk 0:00:39.6]} 29.
Ra7 {[%clk 0:00:08.1]} 29... Ke8 {[%clk 0:00:14.6]} 30. b4 {[%clk 0:00:06.9]}
30... Bh6 {[%clk 0:00:13.1]} 31. Re2 {[%clk 0:00:05.4]} 31... Kd8 {[%clk
0:00:09.7]} 32. c5 {[%clk 0:00:05.5]} 32... dxc5 {[%clk 0:00:09.2]} 33. dxc5
{[%clk 0:00:06.4]} 33... Re6 {[%clk 0:00:07.5]} 34. Rxe6 {[%clk 0:00:06.4]}
34... Bxe6 {[%clk 0:00:08.4]} 35. Nd4 {[%clk 0:00:06.6]} 35... Rc8 {[%clk
0:00:02.2]} 36. Nc6+ {[%clk 0:00:04.5]} 36... Ke8 {[%clk 0:00:02.3]} 37. Rxe7+
{[%clk 0:00:04.3]} 37... Kf8 {[%clk 0:00:03.2]} 38. Ra7 {[%clk 0:00:05]} 38...
Bf4 {[%clk 0:00:03.2]} 39. Ne7 {[%clk 0:00:04.2]} 39... Rb8 {[%clk 0:00:03.1]}
40. Nc6 {[%clk 0:00:03.8]} 40... Rc8 {[%clk 0:00:03.4]} 41. b5 {[%clk
0:00:04.3]} 1-0

[Event "Early-Titled-Tuesday-Blitz-September-05-2023"]
[Site "Chess.com"]
[Date "2023.09.05"]
[Round "7"]
[White "FoxOnTheRun97"]
[Black "Kapitan_Bayan"]
[Result "1-0"]
[WhiteElo "2521"]
[BlackElo "2201"]
[TimeControl "180+1"]
[EndTime "9:17:04 PDT"]
[Termination "FoxOnTheRun97 won on time"]

1. d4 {[%clk 0:03:00.9]} 1... d5 {[%clk 0:02:59.7]} 2. c4 {[%clk 0:02:59.4]}
2... dxc4 {[%clk 0:03:00.6]} 3. e3 {[%clk 0:02:56.2]} 3... e6 {[%clk 0:02:59]}
4. Bxc4 {[%clk 0:02:55.6]} 4... c5 {[%clk 0:02:55.3]} 5. Nf3 {[%clk 0:02:50.8]}
5... Nf6 {[%clk 0:02:53.4]} 6. O-O {[%clk 0:02:49.8]} 6... a6 {[%clk 0:02:52.5]}
7. a4 {[%clk 0:02:48.4]} 7... Nc6 {[%clk 0:02:49.7]} 8. Nc3 {[%clk 0:02:34.9]}
8... Be7 {[%clk 0:02:46]} 9. dxc5 {[%clk 0:02:31.2]} 9... Qc7 {[%clk 0:02:43]}
10. b3 {[%clk 0:02:07.4]} 10... Bxc5 {[%clk 0:02:40.9]} 11. Bb2 {[%clk
0:02:07.6]} 11... O-O {[%clk 0:02:39.1]} 12. Rc1 {[%clk 0:02:07.1]} 12... Bd7
{[%clk 0:02:15.6]} 13. Ne2 {[%clk 0:01:52.1]} 13... Nb4 {[%clk 0:02:04.4]} 14.
Bxf6 {[%clk 0:01:47.6]} 14... gxf6 {[%clk 0:02:02.9]} 15. Nf4 {[%clk 0:01:39]}
15... b6 {[%clk 0:01:51.3]} 16. Nh5 {[%clk 0:01:25.1]} 16... Bc6 {[%clk
0:01:18.1]} 17. Nd4 {[%clk 0:01:11.8]} 17... f5 {[%clk 0:01:08.8]} 18. Nf6+
{[%clk 0:00:26.7]} 18... Kg7 {[%clk 0:01:06.3]} 19. Qh5 {[%clk 0:00:24.3]} 19...
Kxf6 {[%clk 0:01:01.2]} 20. Qh4+ {[%clk 0:00:23.7]} 20... Kg7 {[%clk 0:00:59.7]}
21. Qg5+ {[%clk 0:00:22.3]} 21... Kh8 {[%clk 0:00:59.7]} 22. Qf6+ {[%clk
0:00:21.2]} 22... Kg8 {[%clk 0:01:00]} 23. Nxe6 {[%clk 0:00:17.3]} 23... fxe6
{[%clk 0:00:56.8]} 24. Bxe6+ {[%clk 0:00:16.7]} 24... Rf7 {[%clk 0:00:57.4]} 25.
Qxf5 {[%clk 0:00:11.3]} 25... Rf8 {[%clk 0:00:46.9]} 26. Bxf7+ {[%clk
0:00:10.9]} 26... Rxf7 {[%clk 0:00:46.9]} 27. Qh3 {[%clk 0:00:10.2]} 27... Rg7
{[%clk 0:00:44.7]} 28. f3 {[%clk 0:00:07.7]} 28... Bxe3+ {[%clk 0:00:43.2]} 29.
Kh1 {[%clk 0:00:08.3]} 29... Bxc1 {[%clk 0:00:42.9]} 30. Rxc1 {[%clk 0:00:09.2]}
30... Qf4 {[%clk 0:00:20.6]} 31. Rd1 {[%clk 0:00:07.4]} 31... Rd7 {[%clk
0:00:16.9]} 32. Re1 {[%clk 0:00:06.2]} 32... Re7 {[%clk 0:00:12.2]} 33. Rd1
{[%clk 0:00:04.7]} 33... Bd5 {[%clk 0:00:11.3]} 34. Qc8+ {[%clk 0:00:04.2]}
34... Kf7 {[%clk 0:00:10.1]} 35. Qc3 {[%clk 0:00:04.8]} 35... a5 {[%clk
0:00:07.6]} 36. Rf1 {[%clk 0:00:03.8]} 36... Qe5 {[%clk 0:00:07.5]} 37. Qd2
{[%clk 0:00:03.6]} 37... Qe2 {[%clk 0:00:07.1]} 38. Qf4+ {[%clk 0:00:03.9]}
38... Ke8 {[%clk 0:00:05.9]} 39. Rg1 {[%clk 0:00:04.3]} 39... Nd3 {[%clk
0:00:03.6]} 40. Qb8+ {[%clk 0:00:04.2]} 40... Kf7 {[%clk 0:00:03.2]} 41. h3
{[%clk 0:00:03.2]} 41... Bxf3 {[%clk 0:00:01.9]} 42. gxf3 {[%clk 0:00:02.3]} 1-0

[Event "Early-Titled-Tuesday-Blitz-September-05-2023"]
[Site "Chess.com"]
[Date "2023.09.05"]
[Round "7"]
[White "SilverCityIndigo"]
[Black "aghasiyevkamal"]
[Result "0-1"]
[WhiteElo "2324"]
[BlackElo "2535"]
[TimeControl "180+1"]
[EndTime "9:17:07 PDT"]
[Termination "aghasiyevkamal won by checkmate"]

1. d4 {[%clk 0:02:59.1]} 1... d5 {[%clk 0:02:56.7]} 2. c4 {[%clk 0:02:59.3]}
2... e6 {[%clk 0:02:56]} 3. Nc3 {[%clk 0:02:59]} 3... Nf6 {[%clk 0:02:55.6]} 4.
cxd5 {[%clk 0:02:58]} 4... exd5 {[%clk 0:02:55.2]} 5. Bg5 {[%clk 0:02:58.5]}
5... c6 {[%clk 0:02:52]} 6. e3 {[%clk 0:02:56.5]} 6... Nbd7 {[%clk 0:02:51.4]}
7. Bd3 {[%clk 0:02:56.9]} 7... Bd6 {[%clk 0:02:47.4]} 8. Nge2 {[%clk 0:02:56.4]}
8... h6 {[%clk 0:02:46.9]} 9. Bh4 {[%clk 0:02:54.9]} 9... Qe7 {[%clk 0:02:30.6]}
10. Bg3 {[%clk 0:02:33.2]} 10... Nb6 {[%clk 0:02:11.1]} 11. O-O {[%clk
0:02:29.8]} 11... Bg4 {[%clk 0:02:09.8]} 12. Qc2 {[%clk 0:02:26.8]} 12... Bxe2
{[%clk 0:02:09.1]} 13. Nxe2 {[%clk 0:02:25.8]} 13... Bxg3 {[%clk 0:02:01.5]} 14.
Nxg3 {[%clk 0:02:23.4]} 14... O-O {[%clk 0:02:00.3]} 15. Rae1 {[%clk 0:02:18.3]}
15... Nc8 {[%clk 0:01:54.7]} 16. Nf5 {[%clk 0:02:17.5]} 16... Qd8 {[%clk
0:01:54.4]} 17. Qb3 {[%clk 0:02:08.1]} 17... Rb8 {[%clk 0:01:45.9]} 18. Qb4
{[%clk 0:02:05.3]} 18... Re8 {[%clk 0:01:44.6]} 19. Rc1 {[%clk 0:01:56.4]} 19...
Re6 {[%clk 0:01:36.6]} 20. h3 {[%clk 0:01:31.3]} 20... Nd6 {[%clk 0:01:32.4]}
21. Qa4 {[%clk 0:01:27.8]} 21... a6 {[%clk 0:01:19.7]} 22. Qd1 {[%clk
0:01:10.7]} 22... Nxf5 {[%clk 0:01:16.5]} 23. Bxf5 {[%clk 0:01:11.1]} 23... Re8
{[%clk 0:01:17.4]} 24. Qf3 {[%clk 0:01:06.4]} 24... Qd6 {[%clk 0:01:15.6]} 25.
a3 {[%clk 0:01:04.4]} 25... g6 {[%clk 0:00:58.1]} 26. Bd3 {[%clk 0:01:02.6]}
26... Re6 {[%clk 0:00:56.1]} 27. b4 {[%clk 0:00:52]} 27... Rbe8 {[%clk
0:00:52.4]} 28. Rc3 {[%clk 0:00:45.6]} 28... Nh7 {[%clk 0:00:46.5]} 29. h4
{[%clk 0:00:36.7]} 29... h5 {[%clk 0:00:41.9]} 30. Rb1 {[%clk 0:00:34.6]} 30...
Nf6 {[%clk 0:00:40.5]} 31. Bf1 {[%clk 0:00:17]} 31... Ng4 {[%clk 0:00:39.1]} 32.
g3 {[%clk 0:00:17.5]} 32... Rf6 {[%clk 0:00:38.8]} 33. Qg2 {[%clk 0:00:13.6]}
33... Rxf2 {[%clk 0:00:36.5]} 34. Qxf2 {[%clk 0:00:12.6]} 34... Nxf2 {[%clk
0:00:37.4]} 35. Kxf2 {[%clk 0:00:13.5]} 35... Re6 {[%clk 0:00:28.8]} 36. Bh3
{[%clk 0:00:11.8]} 36... Rf6+ {[%clk 0:00:28.4]} 37. Kg2 {[%clk 0:00:11.8]}
37... g5 {[%clk 0:00:28.1]} 38. hxg5 {[%clk 0:00:11.4]} 38... Rg6 {[%clk
0:00:28.5]} 39. Rf1 {[%clk 0:00:09.8]} 39... Rxg5 {[%clk 0:00:28.3]} 40. Rf4
{[%clk 0:00:10.5]} 40... h4 {[%clk 0:00:28.2]} 41. g4 {[%clk 0:00:08.5]} 41...
f5 {[%clk 0:00:26.7]} 42. Rc2 {[%clk 0:00:05.1]} 42... fxg4 {[%clk 0:00:26.3]}
43. Bxg4 {[%clk 0:00:03.9]} 43... Qg6 {[%clk 0:00:26.5]} 44. Kh3 {[%clk
0:00:03.8]} 44... Qxc2 {[%clk 0:00:25.8]} 45. Be6+ {[%clk 0:00:03.2]} 45... Kg7
{[%clk 0:00:23.8]} 46. Rf7+ {[%clk 0:00:03.9]} 46... Kh6 {[%clk 0:00:24.1]} 47.
Rf4 {[%clk 0:00:04.1]} 47... Qe2 {[%clk 0:00:22.8]} 48. Kxh4 {[%clk 0:00:05]}
48... Qh2+ {[%clk 0:00:21.7]} 49. Bh3 {[%clk 0:00:04.4]} 49... Qg3# {[%clk
0:00:22.1]} 0-1

[Event "Early-Titled-Tuesday-Blitz-September-05-2023"]
[Site "Chess.com"]
[Date "2023.09.05"]
[Round "7"]
[White "tteshan"]
[Black "IngOscarArdila"]
[Result "1-0"]
[WhiteElo "2569"]
[BlackElo "2399"]
[TimeControl "180+1"]
[EndTime "9:17:08 PDT"]
[Termination "tteshan won by checkmate"]

1. d4 {[%clk 0:03:00.9]} 1... Nf6 {[%clk 0:02:59.7]} 2. c4 {[%clk 0:03:01.2]}
2... e6 {[%clk 0:02:59.9]} 3. Nc3 {[%clk 0:03:01.7]} 3... Bb4 {[%clk 0:02:59.9]}
4. e3 {[%clk 0:03:02.1]} 4... O-O {[%clk 0:02:58.8]} 5. Ne2 {[%clk 0:03:02.4]}
5... d5 {[%clk 0:02:57.9]} 6. a3 {[%clk 0:03:02.8]} 6... Be7 {[%clk 0:02:56]} 7.
Nf4 {[%clk 0:03:02.9]} 7... c6 {[%clk 0:02:54.6]} 8. Bd3 {[%clk 0:03:01.9]} 8...
Nbd7 {[%clk 0:02:53.5]} 9. O-O {[%clk 0:03:01.3]} 9... Re8 {[%clk 0:02:53.2]}
10. cxd5 {[%clk 0:03:00.4]} 10... exd5 {[%clk 0:02:53]} 11. Qc2 {[%clk
0:02:58.6]} 11... Nf8 {[%clk 0:02:52.3]} 12. Bd2 {[%clk 0:02:58.5]} 12... Bd6
{[%clk 0:02:50.9]} 13. Rfe1 {[%clk 0:02:54]} 13... Bd7 {[%clk 0:02:44.4]} 14. e4
{[%clk 0:02:44.6]} 14... dxe4 {[%clk 0:02:43.8]} 15. Nxe4 {[%clk 0:02:43.5]}
15... Nxe4 {[%clk 0:02:43.7]} 16. Bxe4 {[%clk 0:02:42.6]} 16... Qh4 {[%clk
0:02:40.8]} 17. g3 {[%clk 0:02:38]} 17... Qf6 {[%clk 0:02:34.5]} 18. d5 {[%clk
0:02:23.4]} 18... Rac8 {[%clk 0:02:29.2]} 19. Bc3 {[%clk 0:02:14.1]} 19... Qh6
{[%clk 0:02:28.1]} 20. Ng2 {[%clk 0:01:54.8]} 20... cxd5 {[%clk 0:01:53]} 21.
Bxd5 {[%clk 0:01:54.6]} 21... Bc6 {[%clk 0:01:52.5]} 22. Rxe8 {[%clk 0:01:50.9]}
22... Rxe8 {[%clk 0:01:47.6]} 23. Bxc6 {[%clk 0:01:47.5]} 23... bxc6 {[%clk
0:01:47.9]} 24. Bd4 {[%clk 0:01:45.8]} 24... Ne6 {[%clk 0:01:39.6]} 25. Qxc6
{[%clk 0:01:30.9]} 25... Rd8 {[%clk 0:01:37.9]} 26. Bxa7 {[%clk 0:01:24.5]}
26... Qd2 {[%clk 0:01:36.4]} 27. b4 {[%clk 0:01:05.2]} 27... Ng5 {[%clk
0:01:35.3]} 28. Rf1 {[%clk 0:00:28.1]} 28... Nh3+ {[%clk 0:01:28.9]} 29. Kh1
{[%clk 0:00:28.4]} 29... Qe2 {[%clk 0:01:21.3]} 30. Qc1 {[%clk 0:00:28.3]} 30...
Bf8 {[%clk 0:01:00.3]} 31. Be3 {[%clk 0:00:22.3]} 31... Qf3 {[%clk 0:00:55.7]}
32. Qc2 {[%clk 0:00:16.8]} 32... h5 {[%clk 0:00:53.6]} 33. Rc1 {[%clk
0:00:16.3]} 33... h4 {[%clk 0:00:51.1]} 34. Re1 {[%clk 0:00:14.2]} 34... hxg3
{[%clk 0:00:50.1]} 35. hxg3 {[%clk 0:00:15]} 35... Rd5 {[%clk 0:00:49]} 36. Qe2
{[%clk 0:00:15.3]} 36... Qf5 {[%clk 0:00:33.7]} 37. Nf4 {[%clk 0:00:11.9]} 37...
Qh7 {[%clk 0:00:27.3]} 38. Kg2 {[%clk 0:00:10.8]} 38... Nxf4+ {[%clk 0:00:22.1]}
39. Bxf4 {[%clk 0:00:11.7]} 39... Rh5 {[%clk 0:00:22.1]} 40. Qe4 {[%clk
0:00:11.2]} 40... Rh2+ {[%clk 0:00:20.4]} 41. Kg1 {[%clk 0:00:11.5]} 41... Qh3
{[%clk 0:00:19.8]} 42. Qf3 {[%clk 0:00:09.9]} 42... g6 {[%clk 0:00:19.1]} 43. b5
{[%clk 0:00:07.9]} 43... Bc5 {[%clk 0:00:18.2]} 44. a4 {[%clk 0:00:07.1]} 44...
Bb4 {[%clk 0:00:17.4]} 45. Re8+ {[%clk 0:00:06.5]} 45... Kh7 {[%clk 0:00:15.2]}
46. Be5 {[%clk 0:00:07.1]} 46... f5 {[%clk 0:00:06]} 47. Rh8# {[%clk 0:00:07.3]}
1-0